{"text_format":"3","workbook":"xlsx","n_sheets":4,"sheets":["CILJEVI","PREHRANA","VJEŽBANJE","Izračuni grafikona"],"not_rendered":{"charts":2,"defined_names":19},"read":"whole","date_system":"1900"}

{"sheet":"CILJEVI","index":0,"n_rows":16,"n_cols":11,"rows_kept":16,"merged":[[2,1,3,1],[7,1,8,1]]}
[null,{"$f":"TODAY()","v":"2017-05-09"},"CILJEVI",{"$nulls":6},"Vježbanje","Prehrana"]
[null,"DATUM POČETKA","DNEVNIK PREHRANE I VJEŽBANJA"]
[null,{"$f":"DatumPočetka+121","v":"2017-09-07"},"ANALIZA PREHRANE"]
[]
[null,"DATUM ZAVRŠETKA"]
[null,{"v":100,"d":"100.00"}]
[null,"POČETNA TEŽINA"]
[null,{"v":80,"d":"80.00"},"ANALIZA VJEŽBANJA"]
[]
[null,"ZAVRŠNA TEŽINA"]
[null,{"$f":"PočetnaTežina-ZavršnaTežina","v":20}]
[null,"CILJNI GUBITAK"]
[null,{"$f":"DatumZavršetka-DatumPočetka","v":121}]
[null,"DANA ZA GUBLJENJE"]
[null,{"$f":"CiljnaTežina/B13","v":{"v":0.1652892561983471,"d":"0.17"}}]
[null,"GUBITAK PO DANU"]

{"sheet":"PREHRANA","index":1,"n_rows":19,"n_cols":9,"rows_kept":19}
[null,"PREHRANA",{"$nulls":4},"Ciljevi","Vježbanje"]
[null,{"$f":"Podnaslov","v":"DNEVNIK PREHRANE I VJEŽBANJA"}]
[null,"DATUM","VRIJEME","OPIS","KALORIJE","UGLJIKOHIDRATI","PROTEINI","MASNOĆE","BILJEŠKE"]
[null,{"$f":"DatumPočetka","v":"2017-05-09"},"07:00:00","Kava",1,0,0,0,"Jutarnja kava"]
[null,{"$f":"DatumPočetka","v":"2017-05-09"},"08:00:00","Pecivo",10,10,2,10,"Lagani doručak"]
[null,{"$f":"DatumPočetka","v":"2017-05-09"},"12:00:00","Ručak",283,46,18,{"v":3.5,"d":"4"},"Sendvič s puretinom"]
[null,{"$f":"DatumPočetka","v":"2017-05-09"},"19:00:00","Večera",500,42,35,25,"Francuski krumpir"]
[null,{"$f":"DatumPočetka+1","v":"2017-05-10"},"07:00:00","Kava",1,0,0,0,"Jutarnja kava"]
[null,{"$f":"DatumPočetka+1","v":"2017-05-10"},"08:00:00","Prepečenac",10,10,2,10,"Lagani doručak"]
[null,{"$f":"DatumPočetka+1","v":"2017-05-10"},"12:00:00","Ručak",189,26,3,8,"Sendvič"]
[null,{"$f":"DatumPočetka+1","v":"2017-05-10"},"19:00:00","Večera",477,62,{"v":13.5,"d":"14"},21,"Večera"]
[null,{"$f":"DatumPočetka+2","v":"2017-05-11"},"07:00:00","Kava",1,0,0,0,"Jutarnja kava"]
[null,{"$f":"DatumPočetka+2","v":"2017-05-11"},"08:00:00","Pecivo",245,48,10,{"v":1.5,"d":"2"},"Lagani doručak"]
[null,{"$f":"DatumPočetka+2","v":"2017-05-11"},"12:00:00","Ručak",247,11,43,5,"Salata"]
[null,{"$f":"DatumPočetka+2","v":"2017-05-11"},"19:00:00","Večera",456,64,32,22,"Večera"]
[null,{"$f":"DatumPočetka+3","v":"2017-05-12"},"07:00:00","Prepečenac",10,10,2,10,"Lagani doručak"]
[null,{"$f":"DatumPočetka+3","v":"2017-05-12"},"10:00:00","Kava",135,{"v":12.36,"d":"12"},{"v":8.81,"d":"9"},{"v":5.51,"d":"6"},"Bijela kava"]
[null,{"$f":"DatumPočetka+3","v":"2017-05-12"},"12:15:00","Ručak",184,7,{"v":5.43,"d":"5"},15,"Salata"]
[null,{"$f":"DatumPočetka+5","v":"2017-05-14"},"19:00:00","Večera",477,62,{"v":13.5,"d":"14"},21,"Večera"]

{"sheet":"VJEŽBANJE","index":2,"n_rows":20,"n_cols":7,"rows_kept":20}
[null,"VJEŽBANJE",{"$nulls":3},"Prehrana","Ciljevi"]
[null,{"$f":"Podnaslov","v":"DNEVNIK PREHRANE I VJEŽBANJA"}]
[null,"DATUM","TRAJANJE (U MINUTAMA)","POTROŠENO KALORIJA","BILJEŠKE"]
[null,{"$f":"DatumPočetka+4","v":"2017-05-13"},30,120,"Vježbanje na traci za trčanje"]
[null,{"$f":"B4+1","v":"2017-05-14"},60,180,"Aerobne vježbe uz očuvanje zglobova"]
[null,{"$f":"B5+1","v":"2017-05-15"},60,350,"Ekstremno vježbanje"]
[null,"2017-05-16",30,150,"Vježbanje na traci za trčanje"]
[null,"2017-05-17",25,125,"Trčanje"]
[null,"2017-05-18",20,285,"Vježbanje na traci za trčanje"]
[null,"2017-05-19",40,205,"Trčanje"]
[null,"2017-05-20",30,335,"Trčanje"]
[null,"2017-05-21",40,175,"Trčanje"]
[null,"2017-05-22",45,325,"Vježbanje na traci za trčanje"]
[null,"2017-05-23",40,270,"Trčanje"]
[null,"2017-05-24",20,295,"Vježbanje na traci za trčanje"]
[null,"2017-05-25",45,350,"Trčanje"]
[null,"2017-05-26",35,320,"Trčanje"]
[null,"2017-05-27",40,290,"Trčanje"]
[null,{"$f":"B18+1","v":"2017-05-28"},25,265,"Vježbanje na traci za trčanje"]
[null,"2017-05-29",20,195,"Trčanje"]

{"sheet":"Izračuni grafikona","index":3,"n_rows":36,"n_cols":10,"rows_kept":36,"hidden":true,"merged":[[1,1,1,9],[19,1,19,9]]}
[]
[null,"PODACI ZA GRAFIKON ANALIZE PREHRANE"]
[]
[null,"Početni redak",{"$f":"ROW(Prehrana[[#Headers],[DATUM]])+1","v":4},"DATUM","DAN","MASNOĆE","PROTEINI","UGLJIKOHIDRATI","KALORIJE","Br."]
[null,"Zadnji unos prehrane",{"$f":"MATCH(9.99E+307,Prehrana[DATUM])+PrehranaRedakPočetak-1","v":19},{"$f":"IFERROR(IF(INDEX(Prehrana[],PrehranaZadnjiKraj-PrehranaRedakPočetak-J5,1)<>\"\",INDEX(Prehrana[],PrehranaZadnjiKraj-PrehranaRedakPočetak-J5,1),\"\"),\"\")","v":"2017-05-09"},{"$f":"UPPER(TEXT(D5,\"DDD\"))","v":"UTO"},{"$f":"IFERROR((IF(INDEX(Prehrana[],PrehranaZadnjiKraj-PrehranaRedakPočetak-J5,1)<>\"\",INDEX(Prehrana[],PrehranaZadnjiKraj-PrehranaRedakPočetak-J5,7),NA())),NA())","v":3.5},{"$f":"IFERROR((IF(INDEX(Prehrana[],PrehranaZadnjiKraj-PrehranaRedakPočetak-J5,1)<>\"\",INDEX(Prehrana[],PrehranaZadnjiKraj-PrehranaRedakPočetak-J5,6),NA())),NA())","v":18},{"$f":"IFERROR((IF(INDEX(Prehrana[],PrehranaZadnjiKraj-PrehranaRedakPočetak-J5,1)<>\"\",INDEX(Prehrana[],PrehranaZadnjiKraj-PrehranaRedakPočetak-J5,5),NA())),NA())","v":46},{"$f":"IFERROR((IF(INDEX(Prehrana[],PrehranaZadnjiKraj-PrehranaRedakPočetak-J5,1)<>\"\",INDEX(Prehrana[],PrehranaZadnjiKraj-PrehranaRedakPočetak-J5,4),NA())),NA())","v":283},12]
[{"$nulls":3},{"$f":"IFERROR(IF(INDEX(Prehrana[],PrehranaZadnjiKraj-PrehranaRedakPočetak-J6,1)<>\"\",INDEX(Prehrana[],PrehranaZadnjiKraj-PrehranaRedakPočetak-J6,1),\"\"),\"\")","v":"2017-05-09"},"UTO",{"$f":"IFERROR((IF(INDEX(Prehrana[],PrehranaZadnjiKraj-PrehranaRedakPočetak-J6,1)<>\"\",INDEX(Prehrana[],PrehranaZadnjiKraj-PrehranaRedakPočetak-J6,7),NA())),NA())","v":25},{"$f":"IFERROR((IF(INDEX(Prehrana[],PrehranaZadnjiKraj-PrehranaRedakPočetak-J6,1)<>\"\",INDEX(Prehrana[],PrehranaZadnjiKraj-PrehranaRedakPočetak-J6,6),NA())),NA())","v":35},{"$f":"IFERROR((IF(INDEX(Prehrana[],PrehranaZadnjiKraj-PrehranaRedakPočetak-J6,1)<>\"\",INDEX(Prehrana[],PrehranaZadnjiKraj-PrehranaRedakPočetak-J6,5),NA())),NA())","v":42},{"$f":"IFERROR((IF(INDEX(Prehrana[],PrehranaZadnjiKraj-PrehranaRedakPočetak-J6,1)<>\"\",INDEX(Prehrana[],PrehranaZadnjiKraj-PrehranaRedakPočetak-J6,4),NA())),NA())","v":500},11]
[{"$nulls":3},{"$f":"IFERROR(IF(INDEX(Prehrana[],PrehranaZadnjiKraj-PrehranaRedakPočetak-J7,1)<>\"\",INDEX(Prehrana[],PrehranaZadnjiKraj-PrehranaRedakPočetak-J7,1),\"\"),\"\")","v":"2017-05-10"},"SRI",{"$f":"IFERROR((IF(INDEX(Prehrana[],PrehranaZadnjiKraj-PrehranaRedakPočetak-J7,1)<>\"\",INDEX(Prehrana[],PrehranaZadnjiKraj-PrehranaRedakPočetak-J7,7),NA())),NA())","v":0},{"$f":"IFERROR((IF(INDEX(Prehrana[],PrehranaZadnjiKraj-PrehranaRedakPočetak-J7,1)<>\"\",INDEX(Prehrana[],PrehranaZadnjiKraj-PrehranaRedakPočetak-J7,6),NA())),NA())","v":0},{"$f":"IFERROR((IF(INDEX(Prehrana[],PrehranaZadnjiKraj-PrehranaRedakPočetak-J7,1)<>\"\",INDEX(Prehrana[],PrehranaZadnjiKraj-PrehranaRedakPočetak-J7,5),NA())),NA())","v":0},{"$f":"IFERROR((IF(INDEX(Prehrana[],PrehranaZadnjiKraj-PrehranaRedakPočetak-J7,1)<>\"\",INDEX(Prehrana[],PrehranaZadnjiKraj-PrehranaRedakPočetak-J7,4),NA())),NA())","v":1},10]
[{"$nulls":3},{"$f":"IFERROR(IF(INDEX(Prehrana[],PrehranaZadnjiKraj-PrehranaRedakPočetak-J8,1)<>\"\",INDEX(Prehrana[],PrehranaZadnjiKraj-PrehranaRedakPočetak-J8,1),\"\"),\"\")","v":"2017-05-10"},"SRI",{"$f":"IFERROR((IF(INDEX(Prehrana[],PrehranaZadnjiKraj-PrehranaRedakPočetak-J8,1)<>\"\",INDEX(Prehrana[],PrehranaZadnjiKraj-PrehranaRedakPočetak-J8,7),NA())),NA())","v":10},{"$f":"IFERROR((IF(INDEX(Prehrana[],PrehranaZadnjiKraj-PrehranaRedakPočetak-J8,1)<>\"\",INDEX(Prehrana[],PrehranaZadnjiKraj-PrehranaRedakPočetak-J8,6),NA())),NA())","v":2},{"$f":"IFERROR((IF(INDEX(Prehrana[],PrehranaZadnjiKraj-PrehranaRedakPočetak-J8,1)<>\"\",INDEX(Prehrana[],PrehranaZadnjiKraj-PrehranaRedakPočetak-J8,5),NA())),NA())","v":10},{"$f":"IFERROR((IF(INDEX(Prehrana[],PrehranaZadnjiKraj-PrehranaRedakPočetak-J8,1)<>\"\",INDEX(Prehrana[],PrehranaZadnjiKraj-PrehranaRedakPočetak-J8,4),NA())),NA())","v":10},9]
[{"$nulls":3},{"$f":"IFERROR(IF(INDEX(Prehrana[],PrehranaZadnjiKraj-PrehranaRedakPočetak-J9,1)<>\"\",INDEX(Prehrana[],PrehranaZadnjiKraj-PrehranaRedakPočetak-J9,1),\"\"),\"\")","v":"2017-05-10"},"SRI",{"$f":"IFERROR((IF(INDEX(Prehrana[],PrehranaZadnjiKraj-PrehranaRedakPočetak-J9,1)<>\"\",INDEX(Prehrana[],PrehranaZadnjiKraj-PrehranaRedakPočetak-J9,7),NA())),NA())","v":8},{"$f":"IFERROR((IF(INDEX(Prehrana[],PrehranaZadnjiKraj-PrehranaRedakPočetak-J9,1)<>\"\",INDEX(Prehrana[],PrehranaZadnjiKraj-PrehranaRedakPočetak-J9,6),NA())),NA())","v":3},{"$f":"IFERROR((IF(INDEX(Prehrana[],PrehranaZadnjiKraj-PrehranaRedakPočetak-J9,1)<>\"\",INDEX(Prehrana[],PrehranaZadnjiKraj-PrehranaRedakPočetak-J9,5),NA())),NA())","v":26},{"$f":"IFERROR((IF(INDEX(Prehrana[],PrehranaZadnjiKraj-PrehranaRedakPočetak-J9,1)<>\"\",INDEX(Prehrana[],PrehranaZadnjiKraj-PrehranaRedakPočetak-J9,4),NA())),NA())","v":189},8]
[{"$nulls":3},{"$f":"IFERROR(IF(INDEX(Prehrana[],PrehranaZadnjiKraj-PrehranaRedakPočetak-J10,1)<>\"\",INDEX(Prehrana[],PrehranaZadnjiKraj-PrehranaRedakPočetak-J10,1),\"\"),\"\")","v":"2017-05-10"},"SRI",{"$f":"IFERROR((IF(INDEX(Prehrana[],PrehranaZadnjiKraj-PrehranaRedakPočetak-J10,1)<>\"\",INDEX(Prehrana[],PrehranaZadnjiKraj-PrehranaRedakPočetak-J10,7),NA())),NA())","v":21},{"$f":"IFERROR((IF(INDEX(Prehrana[],PrehranaZadnjiKraj-PrehranaRedakPočetak-J10,1)<>\"\",INDEX(Prehrana[],PrehranaZadnjiKraj-PrehranaRedakPočetak-J10,6),NA())),NA())","v":13.5},{"$f":"IFERROR((IF(INDEX(Prehrana[],PrehranaZadnjiKraj-PrehranaRedakPočetak-J10,1)<>\"\",INDEX(Prehrana[],PrehranaZadnjiKraj-PrehranaRedakPočetak-J10,5),NA())),NA())","v":62},{"$f":"IFERROR((IF(INDEX(Prehrana[],PrehranaZadnjiKraj-PrehranaRedakPočetak-J10,1)<>\"\",INDEX(Prehrana[],PrehranaZadnjiKraj-PrehranaRedakPočetak-J10,4),NA())),NA())","v":477},7]
[{"$nulls":3},{"$f":"IFERROR(IF(INDEX(Prehrana[],PrehranaZadnjiKraj-PrehranaRedakPočetak-J11,1)<>\"\",INDEX(Prehrana[],PrehranaZadnjiKraj-PrehranaRedakPočetak-J11,1),\"\"),\"\")","v":"2017-05-11"},"ČET",{"$f":"IFERROR((IF(INDEX(Prehrana[],PrehranaZadnjiKraj-PrehranaRedakPočetak-J11,1)<>\"\",INDEX(Prehrana[],PrehranaZadnjiKraj-PrehranaRedakPočetak-J11,7),NA())),NA())","v":0},{"$f":"IFERROR((IF(INDEX(Prehrana[],PrehranaZadnjiKraj-PrehranaRedakPočetak-J11,1)<>\"\",INDEX(Prehrana[],PrehranaZadnjiKraj-PrehranaRedakPočetak-J11,6),NA())),NA())","v":0},{"$f":"IFERROR((IF(INDEX(Prehrana[],PrehranaZadnjiKraj-PrehranaRedakPočetak-J11,1)<>\"\",INDEX(Prehrana[],PrehranaZadnjiKraj-PrehranaRedakPočetak-J11,5),NA())),NA())","v":0},{"$f":"IFERROR((IF(INDEX(Prehrana[],PrehranaZadnjiKraj-PrehranaRedakPočetak-J11,1)<>\"\",INDEX(Prehrana[],PrehranaZadnjiKraj-PrehranaRedakPočetak-J11,4),NA())),NA())","v":1},6]
[{"$nulls":3},{"$f":"IFERROR(IF(INDEX(Prehrana[],PrehranaZadnjiKraj-PrehranaRedakPočetak-J12,1)<>\"\",INDEX(Prehrana[],PrehranaZadnjiKraj-PrehranaRedakPočetak-J12,1),\"\"),\"\")","v":"2017-05-11"},"ČET",{"$f":"IFERROR((IF(INDEX(Prehrana[],PrehranaZadnjiKraj-PrehranaRedakPočetak-J12,1)<>\"\",INDEX(Prehrana[],PrehranaZadnjiKraj-PrehranaRedakPočetak-J12,7),NA())),NA())","v":1.5},{"$f":"IFERROR((IF(INDEX(Prehrana[],PrehranaZadnjiKraj-PrehranaRedakPočetak-J12,1)<>\"\",INDEX(Prehrana[],PrehranaZadnjiKraj-PrehranaRedakPočetak-J12,6),NA())),NA())","v":10},{"$f":"IFERROR((IF(INDEX(Prehrana[],PrehranaZadnjiKraj-PrehranaRedakPočetak-J12,1)<>\"\",INDEX(Prehrana[],PrehranaZadnjiKraj-PrehranaRedakPočetak-J12,5),NA())),NA())","v":48},{"$f":"IFERROR((IF(INDEX(Prehrana[],PrehranaZadnjiKraj-PrehranaRedakPočetak-J12,1)<>\"\",INDEX(Prehrana[],PrehranaZadnjiKraj-PrehranaRedakPočetak-J12,4),NA())),NA())","v":245},5]
[{"$nulls":3},{"$f":"IFERROR(IF(INDEX(Prehrana[],PrehranaZadnjiKraj-PrehranaRedakPočetak-J13,1)<>\"\",INDEX(Prehrana[],PrehranaZadnjiKraj-PrehranaRedakPočetak-J13,1),\"\"),\"\")","v":"2017-05-11"},"ČET",{"$f":"IFERROR((IF(INDEX(Prehrana[],PrehranaZadnjiKraj-PrehranaRedakPočetak-J13,1)<>\"\",INDEX(Prehrana[],PrehranaZadnjiKraj-PrehranaRedakPočetak-J13,7),NA())),NA())","v":5},{"$f":"IFERROR((IF(INDEX(Prehrana[],PrehranaZadnjiKraj-PrehranaRedakPočetak-J13,1)<>\"\",INDEX(Prehrana[],PrehranaZadnjiKraj-PrehranaRedakPočetak-J13,6),NA())),NA())","v":43},{"$f":"IFERROR((IF(INDEX(Prehrana[],PrehranaZadnjiKraj-PrehranaRedakPočetak-J13,1)<>\"\",INDEX(Prehrana[],PrehranaZadnjiKraj-PrehranaRedakPočetak-J13,5),NA())),NA())","v":11},{"$f":"IFERROR((IF(INDEX(Prehrana[],PrehranaZadnjiKraj-PrehranaRedakPočetak-J13,1)<>\"\",INDEX(Prehrana[],PrehranaZadnjiKraj-PrehranaRedakPočetak-J13,4),NA())),NA())","v":247},4]
[{"$nulls":3},{"$f":"IFERROR(IF(INDEX(Prehrana[],PrehranaZadnjiKraj-PrehranaRedakPočetak-J14,1)<>\"\",INDEX(Prehrana[],PrehranaZadnjiKraj-PrehranaRedakPočetak-J14,1),\"\"),\"\")","v":"2017-05-11"},"ČET",{"$f":"IFERROR((IF(INDEX(Prehrana[],PrehranaZadnjiKraj-PrehranaRedakPočetak-J14,1)<>\"\",INDEX(Prehrana[],PrehranaZadnjiKraj-PrehranaRedakPočetak-J14,7),NA())),NA())","v":22},{"$f":"IFERROR((IF(INDEX(Prehrana[],PrehranaZadnjiKraj-PrehranaRedakPočetak-J14,1)<>\"\",INDEX(Prehrana[],PrehranaZadnjiKraj-PrehranaRedakPočetak-J14,6),NA())),NA())","v":32},{"$f":"IFERROR((IF(INDEX(Prehrana[],PrehranaZadnjiKraj-PrehranaRedakPočetak-J14,1)<>\"\",INDEX(Prehrana[],PrehranaZadnjiKraj-PrehranaRedakPočetak-J14,5),NA())),NA())","v":64},{"$f":"IFERROR((IF(INDEX(Prehrana[],PrehranaZadnjiKraj-PrehranaRedakPočetak-J14,1)<>\"\",INDEX(Prehrana[],PrehranaZadnjiKraj-PrehranaRedakPočetak-J14,4),NA())),NA())","v":456},3]
[{"$nulls":3},{"$f":"IFERROR(IF(INDEX(Prehrana[],PrehranaZadnjiKraj-PrehranaRedakPočetak-J15,1)<>\"\",INDEX(Prehrana[],PrehranaZadnjiKraj-PrehranaRedakPočetak-J15,1),\"\"),\"\")","v":"2017-05-12"},"PET",{"$f":"IFERROR((IF(INDEX(Prehrana[],PrehranaZadnjiKraj-PrehranaRedakPočetak-J15,1)<>\"\",INDEX(Prehrana[],PrehranaZadnjiKraj-PrehranaRedakPočetak-J15,7),NA())),NA())","v":10},{"$f":"IFERROR((IF(INDEX(Prehrana[],PrehranaZadnjiKraj-PrehranaRedakPočetak-J15,1)<>\"\",INDEX(Prehrana[],PrehranaZadnjiKraj-PrehranaRedakPočetak-J15,6),NA())),NA())","v":2},{"$f":"IFERROR((IF(INDEX(Prehrana[],PrehranaZadnjiKraj-PrehranaRedakPočetak-J15,1)<>\"\",INDEX(Prehrana[],PrehranaZadnjiKraj-PrehranaRedakPočetak-J15,5),NA())),NA())","v":10},{"$f":"IFERROR((IF(INDEX(Prehrana[],PrehranaZadnjiKraj-PrehranaRedakPočetak-J15,1)<>\"\",INDEX(Prehrana[],PrehranaZadnjiKraj-PrehranaRedakPočetak-J15,4),NA())),NA())","v":10},2]
[{"$nulls":3},{"$f":"IFERROR(IF(INDEX(Prehrana[],PrehranaZadnjiKraj-PrehranaRedakPočetak-J16,1)<>\"\",INDEX(Prehrana[],PrehranaZadnjiKraj-PrehranaRedakPočetak-J16,1),\"\"),\"\")","v":"2017-05-12"},"PET",{"$f":"IFERROR((IF(INDEX(Prehrana[],PrehranaZadnjiKraj-PrehranaRedakPočetak-J16,1)<>\"\",INDEX(Prehrana[],PrehranaZadnjiKraj-PrehranaRedakPočetak-J16,7),NA())),NA())","v":5.51},{"$f":"IFERROR((IF(INDEX(Prehrana[],PrehranaZadnjiKraj-PrehranaRedakPočetak-J16,1)<>\"\",INDEX(Prehrana[],PrehranaZadnjiKraj-PrehranaRedakPočetak-J16,6),NA())),NA())","v":8.81},{"$f":"IFERROR((IF(INDEX(Prehrana[],PrehranaZadnjiKraj-PrehranaRedakPočetak-J16,1)<>\"\",INDEX(Prehrana[],PrehranaZadnjiKraj-PrehranaRedakPočetak-J16,5),NA())),NA())","v":12.36},{"$f":"IFERROR((IF(INDEX(Prehrana[],PrehranaZadnjiKraj-PrehranaRedakPočetak-J16,1)<>\"\",INDEX(Prehrana[],PrehranaZadnjiKraj-PrehranaRedakPočetak-J16,4),NA())),NA())","v":135},1]
[{"$nulls":3},{"$f":"IFERROR(IF(INDEX(Prehrana[],PrehranaZadnjiKraj-PrehranaRedakPočetak-J17,1)<>\"\",INDEX(Prehrana[],PrehranaZadnjiKraj-PrehranaRedakPočetak-J17,1),\"\"),\"\")","v":"2017-05-12"},"PET",{"$f":"IFERROR((IF(INDEX(Prehrana[],PrehranaZadnjiKraj-PrehranaRedakPočetak-J17,1)<>\"\",INDEX(Prehrana[],PrehranaZadnjiKraj-PrehranaRedakPočetak-J17,7),NA())),NA())","v":15},{"$f":"IFERROR((IF(INDEX(Prehrana[],PrehranaZadnjiKraj-PrehranaRedakPočetak-J17,1)<>\"\",INDEX(Prehrana[],PrehranaZadnjiKraj-PrehranaRedakPočetak-J17,6),NA())),NA())","v":5.43},{"$f":"IFERROR((IF(INDEX(Prehrana[],PrehranaZadnjiKraj-PrehranaRedakPočetak-J17,1)<>\"\",INDEX(Prehrana[],PrehranaZadnjiKraj-PrehranaRedakPočetak-J17,5),NA())),NA())","v":7},{"$f":"IFERROR((IF(INDEX(Prehrana[],PrehranaZadnjiKraj-PrehranaRedakPočetak-J17,1)<>\"\",INDEX(Prehrana[],PrehranaZadnjiKraj-PrehranaRedakPočetak-J17,4),NA())),NA())","v":184},0]
[{"$nulls":3},{"$f":"IFERROR(IF(INDEX(Prehrana[],PrehranaZadnjiKraj-PrehranaRedakPočetak-J18,1)<>\"\",INDEX(Prehrana[],PrehranaZadnjiKraj-PrehranaRedakPočetak-J18,1),\"\"),\"\")","v":"2017-05-14"},"NED",{"$f":"IFERROR((IF(INDEX(Prehrana[],PrehranaZadnjiKraj-PrehranaRedakPočetak-J18,1)<>\"\",INDEX(Prehrana[],PrehranaZadnjiKraj-PrehranaRedakPočetak-J18,7),NA())),NA())","v":21},{"$f":"IFERROR((IF(INDEX(Prehrana[],PrehranaZadnjiKraj-PrehranaRedakPočetak-J18,1)<>\"\",INDEX(Prehrana[],PrehranaZadnjiKraj-PrehranaRedakPočetak-J18,6),NA())),NA())","v":13.5},{"$f":"IFERROR((IF(INDEX(Prehrana[],PrehranaZadnjiKraj-PrehranaRedakPočetak-J18,1)<>\"\",INDEX(Prehrana[],PrehranaZadnjiKraj-PrehranaRedakPočetak-J18,5),NA())),NA())","v":62},{"$f":"IFERROR((IF(INDEX(Prehrana[],PrehranaZadnjiKraj-PrehranaRedakPočetak-J18,1)<>\"\",INDEX(Prehrana[],PrehranaZadnjiKraj-PrehranaRedakPočetak-J18,4),NA())),NA())","v":477},-1]
[]
[null,"PODACI ZA GRAFIKON ANALIZE VJEŽBANJA"]
[]
[null,"Početni redak",{"$f":"ROW(Vježbanje[[#Headers],[DATUM]])+1","v":4},"DATUM","DAN","TRAJANJE (U MINUTAMA)","POTROŠENO KALORIJA","Br."]
[null,"Zadnji unos vježbanja",{"$f":"MATCH(9.99E+307,Vježbanje[DATUM])+PočetakRetkaVježbanja-1","v":20},{"$f":"IFERROR(IF(INDEX(Vježbanje[],VježbanjeZadnjeKraj-PočetakRetkaVježbanja-H23,1)<>\"\",INDEX(Vježbanje[],VježbanjeZadnjeKraj-PočetakRetkaVježbanja-H23,1)),\"\")","v":"2017-05-29"},{"$f":"UPPER(TEXT(D23,\"DDD\"))","v":"PON"},{"$f":"IFERROR((IF(INDEX(Vježbanje[],VježbanjeZadnjeKraj-PočetakRetkaVježbanja-H23,1)<>\"\",INDEX(Vježbanje[],VježbanjeZadnjeKraj-PočetakRetkaVježbanja-H23,2),0)),0)","v":20},{"$f":"IFERROR((IF(INDEX(Vježbanje[],VježbanjeZadnjeKraj-PočetakRetkaVježbanja-H23,2)<>\"\",INDEX(Vježbanje[],VježbanjeZadnjeKraj-PočetakRetkaVježbanja-H23,3),0)),0)","v":195},-1]
[{"$nulls":3},{"$f":"IFERROR(IF(INDEX(Vježbanje[],VježbanjeZadnjeKraj-PočetakRetkaVježbanja-H24,1)<>\"\",INDEX(Vježbanje[],VježbanjeZadnjeKraj-PočetakRetkaVježbanja-H24,1)),\"\")","v":"2017-05-28"},"NED",{"$f":"IFERROR((IF(INDEX(Vježbanje[],VježbanjeZadnjeKraj-PočetakRetkaVježbanja-H24,1)<>\"\",INDEX(Vježbanje[],VježbanjeZadnjeKraj-PočetakRetkaVježbanja-H24,2),0)),0)","v":25},{"$f":"IFERROR((IF(INDEX(Vježbanje[],VježbanjeZadnjeKraj-PočetakRetkaVježbanja-H24,2)<>\"\",INDEX(Vježbanje[],VježbanjeZadnjeKraj-PočetakRetkaVježbanja-H24,3),0)),0)","v":265},0]
[{"$nulls":3},{"$f":"IFERROR(IF(INDEX(Vježbanje[],VježbanjeZadnjeKraj-PočetakRetkaVježbanja-H25,1)<>\"\",INDEX(Vježbanje[],VježbanjeZadnjeKraj-PočetakRetkaVježbanja-H25,1)),\"\")","v":"2017-05-27"},"SUB",{"$f":"IFERROR((IF(INDEX(Vježbanje[],VježbanjeZadnjeKraj-PočetakRetkaVježbanja-H25,1)<>\"\",INDEX(Vježbanje[],VježbanjeZadnjeKraj-PočetakRetkaVježbanja-H25,2),0)),0)","v":40},{"$f":"IFERROR((IF(INDEX(Vježbanje[],VježbanjeZadnjeKraj-PočetakRetkaVježbanja-H25,2)<>\"\",INDEX(Vježbanje[],VježbanjeZadnjeKraj-PočetakRetkaVježbanja-H25,3),0)),0)","v":290},1]
[{"$nulls":3},{"$f":"IFERROR(IF(INDEX(Vježbanje[],VježbanjeZadnjeKraj-PočetakRetkaVježbanja-H26,1)<>\"\",INDEX(Vježbanje[],VježbanjeZadnjeKraj-PočetakRetkaVježbanja-H26,1)),\"\")","v":"2017-05-26"},"PET",{"$f":"IFERROR((IF(INDEX(Vježbanje[],VježbanjeZadnjeKraj-PočetakRetkaVježbanja-H26,1)<>\"\",INDEX(Vježbanje[],VježbanjeZadnjeKraj-PočetakRetkaVježbanja-H26,2),0)),0)","v":35},{"$f":"IFERROR((IF(INDEX(Vježbanje[],VježbanjeZadnjeKraj-PočetakRetkaVježbanja-H26,2)<>\"\",INDEX(Vježbanje[],VježbanjeZadnjeKraj-PočetakRetkaVježbanja-H26,3),0)),0)","v":320},2]
[{"$nulls":3},{"$f":"IFERROR(IF(INDEX(Vježbanje[],VježbanjeZadnjeKraj-PočetakRetkaVježbanja-H27,1)<>\"\",INDEX(Vježbanje[],VježbanjeZadnjeKraj-PočetakRetkaVježbanja-H27,1)),\"\")","v":"2017-05-25"},"ČET",{"$f":"IFERROR((IF(INDEX(Vježbanje[],VježbanjeZadnjeKraj-PočetakRetkaVježbanja-H27,1)<>\"\",INDEX(Vježbanje[],VježbanjeZadnjeKraj-PočetakRetkaVježbanja-H27,2),0)),0)","v":45},{"$f":"IFERROR((IF(INDEX(Vježbanje[],VježbanjeZadnjeKraj-PočetakRetkaVježbanja-H27,2)<>\"\",INDEX(Vježbanje[],VježbanjeZadnjeKraj-PočetakRetkaVježbanja-H27,3),0)),0)","v":350},3]
[{"$nulls":3},{"$f":"IFERROR(IF(INDEX(Vježbanje[],VježbanjeZadnjeKraj-PočetakRetkaVježbanja-H28,1)<>\"\",INDEX(Vježbanje[],VježbanjeZadnjeKraj-PočetakRetkaVježbanja-H28,1)),\"\")","v":"2017-05-24"},"SRI",{"$f":"IFERROR((IF(INDEX(Vježbanje[],VježbanjeZadnjeKraj-PočetakRetkaVježbanja-H28,1)<>\"\",INDEX(Vježbanje[],VježbanjeZadnjeKraj-PočetakRetkaVježbanja-H28,2),0)),0)","v":20},{"$f":"IFERROR((IF(INDEX(Vježbanje[],VježbanjeZadnjeKraj-PočetakRetkaVježbanja-H28,2)<>\"\",INDEX(Vježbanje[],VježbanjeZadnjeKraj-PočetakRetkaVježbanja-H28,3),0)),0)","v":295},4]
[{"$nulls":3},{"$f":"IFERROR(IF(INDEX(Vježbanje[],VježbanjeZadnjeKraj-PočetakRetkaVježbanja-H29,1)<>\"\",INDEX(Vježbanje[],VježbanjeZadnjeKraj-PočetakRetkaVježbanja-H29,1)),\"\")","v":"2017-05-23"},"UTO",{"$f":"IFERROR((IF(INDEX(Vježbanje[],VježbanjeZadnjeKraj-PočetakRetkaVježbanja-H29,1)<>\"\",INDEX(Vježbanje[],VježbanjeZadnjeKraj-PočetakRetkaVježbanja-H29,2),0)),0)","v":40},{"$f":"IFERROR((IF(INDEX(Vježbanje[],VježbanjeZadnjeKraj-PočetakRetkaVježbanja-H29,2)<>\"\",INDEX(Vježbanje[],VježbanjeZadnjeKraj-PočetakRetkaVježbanja-H29,3),0)),0)","v":270},5]
[{"$nulls":3},{"$f":"IFERROR(IF(INDEX(Vježbanje[],VježbanjeZadnjeKraj-PočetakRetkaVježbanja-H30,1)<>\"\",INDEX(Vježbanje[],VježbanjeZadnjeKraj-PočetakRetkaVježbanja-H30,1)),\"\")","v":"2017-05-22"},"PON",{"$f":"IFERROR((IF(INDEX(Vježbanje[],VježbanjeZadnjeKraj-PočetakRetkaVježbanja-H30,1)<>\"\",INDEX(Vježbanje[],VježbanjeZadnjeKraj-PočetakRetkaVježbanja-H30,2),0)),0)","v":45},{"$f":"IFERROR((IF(INDEX(Vježbanje[],VježbanjeZadnjeKraj-PočetakRetkaVježbanja-H30,2)<>\"\",INDEX(Vježbanje[],VježbanjeZadnjeKraj-PočetakRetkaVježbanja-H30,3),0)),0)","v":325},6]
[{"$nulls":3},{"$f":"IFERROR(IF(INDEX(Vježbanje[],VježbanjeZadnjeKraj-PočetakRetkaVježbanja-H31,1)<>\"\",INDEX(Vježbanje[],VježbanjeZadnjeKraj-PočetakRetkaVježbanja-H31,1)),\"\")","v":"2017-05-21"},"NED",{"$f":"IFERROR((IF(INDEX(Vježbanje[],VježbanjeZadnjeKraj-PočetakRetkaVježbanja-H31,1)<>\"\",INDEX(Vježbanje[],VježbanjeZadnjeKraj-PočetakRetkaVježbanja-H31,2),0)),0)","v":40},{"$f":"IFERROR((IF(INDEX(Vježbanje[],VježbanjeZadnjeKraj-PočetakRetkaVježbanja-H31,2)<>\"\",INDEX(Vježbanje[],VježbanjeZadnjeKraj-PočetakRetkaVježbanja-H31,3),0)),0)","v":175},7]
[{"$nulls":3},{"$f":"IFERROR(IF(INDEX(Vježbanje[],VježbanjeZadnjeKraj-PočetakRetkaVježbanja-H32,1)<>\"\",INDEX(Vježbanje[],VježbanjeZadnjeKraj-PočetakRetkaVježbanja-H32,1)),\"\")","v":"2017-05-20"},"SUB",{"$f":"IFERROR((IF(INDEX(Vježbanje[],VježbanjeZadnjeKraj-PočetakRetkaVježbanja-H32,1)<>\"\",INDEX(Vježbanje[],VježbanjeZadnjeKraj-PočetakRetkaVježbanja-H32,2),0)),0)","v":30},{"$f":"IFERROR((IF(INDEX(Vježbanje[],VježbanjeZadnjeKraj-PočetakRetkaVježbanja-H32,2)<>\"\",INDEX(Vježbanje[],VježbanjeZadnjeKraj-PočetakRetkaVježbanja-H32,3),0)),0)","v":335},8]
[{"$nulls":3},{"$f":"IFERROR(IF(INDEX(Vježbanje[],VježbanjeZadnjeKraj-PočetakRetkaVježbanja-H33,1)<>\"\",INDEX(Vježbanje[],VježbanjeZadnjeKraj-PočetakRetkaVježbanja-H33,1)),\"\")","v":"2017-05-19"},"PET",{"$f":"IFERROR((IF(INDEX(Vježbanje[],VježbanjeZadnjeKraj-PočetakRetkaVježbanja-H33,1)<>\"\",INDEX(Vježbanje[],VježbanjeZadnjeKraj-PočetakRetkaVježbanja-H33,2),0)),0)","v":40},{"$f":"IFERROR((IF(INDEX(Vježbanje[],VježbanjeZadnjeKraj-PočetakRetkaVježbanja-H33,2)<>\"\",INDEX(Vježbanje[],VježbanjeZadnjeKraj-PočetakRetkaVježbanja-H33,3),0)),0)","v":205},9]
[{"$nulls":3},{"$f":"IFERROR(IF(INDEX(Vježbanje[],VježbanjeZadnjeKraj-PočetakRetkaVježbanja-H34,1)<>\"\",INDEX(Vježbanje[],VježbanjeZadnjeKraj-PočetakRetkaVježbanja-H34,1)),\"\")","v":"2017-05-18"},"ČET",{"$f":"IFERROR((IF(INDEX(Vježbanje[],VježbanjeZadnjeKraj-PočetakRetkaVježbanja-H34,1)<>\"\",INDEX(Vježbanje[],VježbanjeZadnjeKraj-PočetakRetkaVježbanja-H34,2),0)),0)","v":20},{"$f":"IFERROR((IF(INDEX(Vježbanje[],VježbanjeZadnjeKraj-PočetakRetkaVježbanja-H34,2)<>\"\",INDEX(Vježbanje[],VježbanjeZadnjeKraj-PočetakRetkaVježbanja-H34,3),0)),0)","v":285},10]
[{"$nulls":3},{"$f":"IFERROR(IF(INDEX(Vježbanje[],VježbanjeZadnjeKraj-PočetakRetkaVježbanja-H35,1)<>\"\",INDEX(Vježbanje[],VježbanjeZadnjeKraj-PočetakRetkaVježbanja-H35,1)),\"\")","v":"2017-05-17"},"SRI",{"$f":"IFERROR((IF(INDEX(Vježbanje[],VježbanjeZadnjeKraj-PočetakRetkaVježbanja-H35,1)<>\"\",INDEX(Vježbanje[],VježbanjeZadnjeKraj-PočetakRetkaVježbanja-H35,2),0)),0)","v":25},{"$f":"IFERROR((IF(INDEX(Vježbanje[],VježbanjeZadnjeKraj-PočetakRetkaVježbanja-H35,2)<>\"\",INDEX(Vježbanje[],VježbanjeZadnjeKraj-PočetakRetkaVježbanja-H35,3),0)),0)","v":125},11]
[{"$nulls":3},{"$f":"IFERROR(IF(INDEX(Vježbanje[],VježbanjeZadnjeKraj-PočetakRetkaVježbanja-H36,1)<>\"\",INDEX(Vježbanje[],VježbanjeZadnjeKraj-PočetakRetkaVježbanja-H36,1)),\"\")","v":"2017-05-16"},"UTO",{"$f":"IFERROR((IF(INDEX(Vježbanje[],VježbanjeZadnjeKraj-PočetakRetkaVježbanja-H36,1)<>\"\",INDEX(Vježbanje[],VježbanjeZadnjeKraj-PočetakRetkaVježbanja-H36,2),0)),0)","v":30},{"$f":"IFERROR((IF(INDEX(Vježbanje[],VježbanjeZadnjeKraj-PočetakRetkaVježbanja-H36,2)<>\"\",INDEX(Vježbanje[],VježbanjeZadnjeKraj-PočetakRetkaVježbanja-H36,3),0)),0)","v":150},12]